Cogmind - Beta 14 @@@ ROGUE MODE // 2025.03.22 @ 14:38:09 Player: SirusTheMadDJ Result: Destroyed by as-16168 with Assembled Rifle Performance ------------- Evolutions (0) 0 Regions Visited (2) 400 Robots Destroyed (13) 65 Value Destroyed (325) 325 Prototype IDs (0) 0 Alien Tech Used (0) 0 Bonus (0) 0 TOTAL SCORE: 790 Bonus ------- None Cogmind --------- Core Integrity 0/250 Matter 40/300 Energy 95/100 System Corruption 0% Temperature Warm (120) Movement Core (300) Ox5 Location -10/Mines Parts ------- > --- POWER (1) -------- (None) > --- PROPULSION (2) --- (None) > --- UTILITY (2) ------ Small Storage Unit Medium Storage Unit > --- WEAPON (2) ------- Medium Laser > --- INVENTORY (10) --- Aluminum Leg Terrain Scanner Hacking Suite Mining Laser Peak State ------------ > --- POWER ------------ Ion Engine > --- PROPULSION ------- Aluminum Leg Aluminum Leg > --- UTILITY ---------- Small Storage Unit Medium Storage Unit > --- WEAPON ----------- Light Assault Rifle Light Cannon > --- INVENTORY -------- Light Ion Engine Wheel Wheel Terrain Scanner Hacking Suite Medium Laser Assault Rifle Light Assault Rifle Grenade Launcher Mining Laser [Rating: 8] Favorites ----------- Power Ion Engine Engine Ion Engine Propulsion Aluminum Leg Leg Aluminum Leg Utility Small Storage Unit Storage Small Storage Unit Weapon Light Assault Rifle Energy Gun Medium Laser Ballistic Gun Light Assault Rifle Ballistic Cannon Light Cannon Launcher Grenade Launcher Build | -11 -10 -10 ------- Run | Yrd Mat Min Slots Evolved . | . . . Power . | . . . Propulsion . | . . . Utility . | . . . Weapon . | . . . Parts Attached 17 | 6 6 5 Power 3 | 1 1 1 Engine 3 | 1 1 1 Core . | . . . Reactor . | . . . Propulsion 4 | 2 2 . Treads . | . . . Leg 4 | 2 2 . Wheel . | . . . Hover . | . . . Flight . | . . . Utility 2 | 1 1 . Device . | . . . Storage 2 | 1 1 . Processor . | . . . Hackware . | . . . Protection . | . . . Artifact . | . . . Weapon 8 | 2 2 4 Energy Gun 1 | . . 1 Energy Cannon . | . . . Ballistic Gun 4 | 2 . 2 Ballistic Cannon 1 | . 1 . Launcher 2 | . 1 1 Special Weapon . | . . . Impact Weapon . | . . . Slashing Weapon . | . . . Piercing Weapon . | . . . Special Melee Weapon . | . . . Unidentified Prototypes . | . . . Parts Lost 9 | . . 9 Power 2 | . . 2 Propulsion 2 | . . 2 Utility . | . . . Weapon 5 | . . 5 Highest Loss Streak 9 | . . 9 To Critical Strikes 1 | . . 1 Average Slot Usage (%) 94 | . 96 76 Engine 13 | . 14 10 Leg 25 | . 26 15 Storage 26 | . 26 28 Ballistic Gun 14 | . 15 11 Ballistic Cannon 10 | . 11 5 Launcher 1 | . 1 1 Peak Build Rating 8 | 6 8 8 Average Rating 6 | 4 7 5 On Entrance 4 | . 6 8 Naked Turns . | . . . Heaviest Build 26 | 11 24 26 Greatest Support 20 | 20 20 20 Greatest Overweight (x) 6 | 3 1 6 Average Overweight (x) . | . . 2 Largest Inventory Capacity 10 | 8 10 10 Average Capacity 9 | 7 9 10 Most Carried 10 | 4 10 9 Average Carried 7 | 2 7 6 Final Capacity 10 | 8 10 10 Final Carried 9 | 4 9 4 Class Distribution -------------------- 100% | Mutant Dominant Class ---------------- Mutant | -10/Materials Mutant | -10/Mines Resources | -11 -10 -10 ----------- Run | Yrd Mat Min Matter Collected 398 | 154 154 90 Remotely . | . . . Salvage Created 417 | . 322 95 Parts 20 | . 20 . Haulers Intercepted 1 | . 1 . Recyclers Shooed 1 | . 1 . Parts Field Recycled . | . . . Retrieved Matter . | . . . Parts Self-Destructed . | . . . Prevented . | . . . Kills | -11 -10 -10 ------- Run | Yrd Mat Min Combat Hostiles Destroyed 20 | . 6 14 Guns 5 | . . 5 Cannons 4 | . 1 3 AOE 11 | . 5 6 Classes Destroyed 8 | . 7 1 Worker 2 | . 2 . Hauler 1 | . 1 . Recycler 1 | . 1 . Mechanic 1 | . 1 . Operator 1 | . 1 . Watcher 1 | . 1 . Grunt 6 | . 6 . Assembled 14 | . . 14 Best Kill Streak 10 | . 10 8 Combat Bots Only 8 | . 5 8 Max Kills in Single Turn 3 | . 2 3 Gunslinging . | . . . Exploded 3 | . 1 3 Melee . | . . . Uniques/NPCs Destroyed . | . . . Combat | -11 -10 -10 -------- Run | Yrd Mat Min Hostile Shots Fired 118 | . 23 95 Missed 32 | . 13 19 Damage Taken 1262 | . 174 1088 Core 251 | . 14 237 Absorbed by Shields . | . . . Regen/Repaired (Parts) 114 | . 114 . Core Remaining (%) 100 | 100 . . Volleys Fired 71 | . 33 38 Largest 2 | . 2 2 Hottest 70 | . 55 70 Shots Fired 120 | . 64 56 Gun 82 | . 39 43 Cannon 22 | . 13 9 Launcher 16 | . 12 4 Special . | . . . Kinetic 86 | . 52 34 Thermal 18 | . . 18 Explosive 16 | . 12 4 Electromagnetic . | . . . Robot Hit Streak 10 | . 10 4 Robot Miss Streak 10 | . 10 5 Penetration Max . | . . . Secondary Targets 1 | . . 1 Max Gunslinging Chain 1 | . . 1 Shots Hit Robots 57 | . 28 29 Core Hits 51 | . 24 27 Critical Kills . | . . . Critical Parts Destroyed . | . . . Critical Strikes 2 | . 2 . Blast 2 | . 2 . Melee Attacks . | . . . Impact . | . . . Slashing . | . . . Piercing . | . . . Sneak Attacks . | . . . Combat Hostiles . | . . . Follow-up Attacks . | . . . Damage Inflicted 1751 | . 1081 670 Guns 351 | . 126 225 Cannons 270 | . 156 114 Explosions 1126 | . 796 330 Melee . | . . . Ramming 4 | . 3 1 Kinetic 508 | . 282 226 Thermal 273 | . 160 113 Explosive 966 | . 636 330 Electromagnetic . | . . . Impact . | . . . Slashing . | . . . Piercing . | . . . Highest Corruption . | . . . Average Corruption . | . . . Corruption Purged . | . . . Corruption Blocked . | . . . Overload Shots . | . . . Overflow Damage 54 | . 27 27 Projectiles . | . . . Explosions 54 | . 27 27 Melee . | . . . Knockbacks 5 | . 3 2 Impact . | . . . Kinetic 5 | . 3 2 Secondary . | . . . Self-Inflicted Damage 106 | . 41 65 Shots 4 | . 2 2 Rammed . | . . . Targets Rammed 2 | . 1 1 Kicked 2 | . 1 1 Crushed . | . . . Highest Temperature 120 | . 38 120 Average Temperature 25 | . 13 37 Received Heat Transfer 378 | . 78 300 Siege Activations . | . . . Robots Corrupted . | . . . Combat Hostiles . | . . . Parts Fried . | . . . Impact Corruptions . | . . . Robots Melted . | . . . Combat Hostiles . | . . . Parts Melted . | . . . Heat Transferred 433 | . 100 333 Parts Sabotaged . | . . . Parts Stolen . | . . . Parts Stripped . | . . . Power Chain Reactions . | . . . Alert | -11 -10 -10 ------- Run | Yrd Mat Min Peak Influence 272 | . 272 25 Initial . | . . . Average 98 | . 122 1 Maximum Alert Level 1 | . 1 . Low Security (%) 75 | 100 69 100 Level 1 24 | . 30 . Level 2 . | . . . Level 3 . | . . . Level 4 . | . . . Level 5 . | . . . High Security . | . . . Max Security . | . . . Squads Dispatched 2 | . 2 . Investigation . | . . . Extermination . | . . . Reinforcement 2 | . 2 . Assault . | . . . Garrison . | . . . Intercept . | . . . Searches Triggered . | . . . Construction Impeded . | . . . Haulers Reinforced . | . . . Active Scanning Responses . | . . . Cargo Convoy Interrupts . | . . . Stealth | -11 -10 -10 --------- Run | Yrd Mat Min Distress Signals 1 | . 1 . Communications Jammed . | . . . Distress Signals . | . . . Times Spotted 35 | . 12 23 Peak Tracking Total 17 | . 4 17 Tactical Retreats 4 | . 1 3 Traps | -11 -10 -10 ------- Run | Yrd Mat Min Traps Triggered . | . . . Indirectly . | . . . Trap Hack Attempts . | . . . Triggered . | . . . Disarmed . | . . . Reprogrammed . | . . . Reused . | . . . Traps Extracted . | . . . Installed . | . . . Triggered . | . . . Machines | -11 -10 -10 ---------- Run | Yrd Mat Min Machines Disabled 4 | . 4 . Max in Single Turn 3 | . 3 . Machines Repaired . | . . . Machines Dismantled . | . . . Machines Sabotaged . | . . . Overloaded Fab Kills . | . . . Hacking | -11 -10 -10 --------- Run | Yrd Mat Min Machines Accessed 1 | . 1 . Terminals . | . . . Fabricators . | . . . Repair Stations 1 | . 1 . Recycling Units . | . . . Scanalyzers . | . . . Garrison Access . | . . . Total Hacks 6 | . 6 . Successful 5 | . 5 . Failed 1 | . 1 . Catastrophic . | . . . Database Lockouts . | . . . Manual . | . . . Terminals . | . . . Fabricators . | . . . Repair Stations 6 | . 6 . Recycling Units . | . . . Scanalyzers . | . . . Garrison Access . | . . . Terminal Hacks . | . . . Fabricator Hacks . | . . . Repair Station Hacks 5 | . 5 . Scan Component 3 | . 3 . Repair 2 | . 2 . Recycling Unit Hacks . | . . . Scanalyzer . | . . . Garrison Access Hacks . | . . . Unauthorized Hacks . | . . . Terminals . | . . . Fabricators . | . . . Repair Stations . | . . . Recycling Units . | . . . Scanalyzers . | . . . Garrison Access . | . . . Data Cores Recovered . | . . . Used . | . . . Hacking Detections 1 | . 1 . Full Trace Events . | . . . Feedback Events . | . . . Feedback Blocked . | . . . Robot Schematics Acquired . | . . . Robots Built . | . . . Authchips . | . . . Time . | . . . Total Robot Build Rating . | . . . Part Schematics Acquired . | . . . Parts Built . | . . . Authchips . | . . . Time . | . . . Total Part Build Rating . | . . . Parts Repaired 2 | . 2 . Time 62 | . 62 . Parts Recycled . | . . . Recycled Matter . | . . . Retrieved Matter . | . . . Retrieved Components . | . . . Parts Scanalyzed . | . . . Part Schematics Acquired . | . . . Parts Damaged . | . . . Bothacking | -11 -10 -10 ------------ Run | Yrd Mat Min Used RIF Installer . | . . . Robots Hacked . | . . . Non-combat . | . . . Combat . | . . . Robot Hacks Applied . | . . . Relay Couplers Released . | . . . Fabnet Peak Effective % . | . . . Robots Rewired . | . . . Allies Hacked . | . . . Hacks Repelled . | . . . Allies | -11 -10 -10 -------- Run | Yrd Mat Min Total Allies . | . . . Largest Group . | . . . Highest-Rated Group . | . . . Highest-Rated Ally . | . . . Total Orders . | . . . Ally Attacks . | . . . Total Damage . | . . . Kills . | . . . Allies Corrupted . | . . . Allies Melted . | . . . Intel | -11 -10 -10 ------- Run | Yrd Mat Min Robot Analysis Total . | . . . Derelict Logs Recovered . | . . . Drone Launches . | . . . Drone Recoveries . | . . . Exploration | -11 -10 -10 ------------- Run | Yrd Mat Min Turns Passed 1165 | 86 936 143 Spaces Moved 494 | 59 414 21 Core 28 | 23 . 5 Treads . | . . . Legs 466 | 36 414 16 Wheels . | . . . Hover . | . . . Flight . | . . . Fastest Speed 50 | 50 120 190 Average Speed 175 | 125 180 221 Slowest Speed 350 | 200 190 350 Overloaded Moves . | . . . Propulsion Burnouts . | . . . Robots Hopped . | . . . Cave-ins Triggered . | . . . Exploration Rate (%) 21 | 4 54 7 Regions Visited 2 Branch Regions 1 Pre-discovered Areas . | . . . Known Exits Taken . | . . . Unknown Exits Taken 2 | 1 1 . Scrap Searched . | . . . Spaces Dug . | . . . Terrain Destroyed 86 | . 47 39 Melee . | . . . Projectile . | . . . AOE 86 | . 47 39 Terrain Rammed . | . . . Walls Destroyed . | . . . Machines Disabled . | . . . Actions | -11 -10 -10 --------- Run | Yrd Mat Min Total 677 | 68 544 65 Wait 77 | . 77 . Move 492 | 58 413 21 Hop . | . . . Pick Up 13 | 4 9 . Fast Attach 9 | 6 3 . Attach 5 | . . 5 Detach . | . . . Swap 3 | . 3 . Drop 5 | . 5 . Fire 71 | . 33 38 Melee . | . . . Ram . | . . . Kick 2 | . 1 1 Crush . | . . . Escape Stasis . | . . . Rewire . | . . . Trap . | . . . Miscellaneous . | . . . Route ------- -11/Scrapyard -10/Materials -10/Mines History --------- Turn | Location | Event 35 | -11/Scrapyard | Discovered new exit (range 14) 87 | -11/Scrapyard | Entered Materials 305 | -10/Materials | Discovered new exit (range 15) 309 | -10/Materials | Build established: Mutant 504 | -10/Materials | Repaired Aluminum Leg 541 | -10/Materials | Repaired Broken Aluminum Leg 1023 | -10/Materials | Entered Mines 1024 | -10/Mines | Assembled infested the area 1111 | -10/Mines | Core integrity fell below 50% 1119 | -10/Mines | Destroyed 8 combat bots 1157 | -10/Mines | Lost 9 parts (2p2n5w) 1157 | -10/Mines | Core integrity fell below 20% 1166 | -10/Mines | Destroyed by as-16168 with Assembled Rifle Last Messages --------------- Critical hit (Burn: +80). The unstable cave ceiling collapses. as-80394 destroyed. Switching to secondary target: as-29927. as-29927 destroyed. Critical hit (Destroy). Ion Engine destroyed. The unstable cave ceiling collapses. Aluminum Leg destroyed. Assault Rifle destroyed. Lgt. Ion Engine destroyed. Lgt. Assault Rifle destroyed. as-41352 destroyed. as-12289 destroyed. Acquired 4 matter. Acquired 5 matter. The unstable cave ceiling collapses. Critical hit (Burn: +80). The unstable cave ceiling collapses. as-04202 destroyed. Map ----- +----------------------------------------------------+ | | | | | | | | | | | | | | | | | | | | | | | | | | | | | | | | | | | | | ?????????????????????????????????????????? | | ?????????????????????#########???????????? | | ?????????????######### #???????????? | | ?????????????? #???????????? | | ?????????????????????# #???????????? | | ?????????????????????# #???????????? | | ?????????????????????# #???????????? | | ?????????????????????####@ ##???????????? | | ??????????????????????# a%##????????????? | | ??????????????????????# %% #????????????? | | ??????????????????????# % #????????????? | | ?????????????????????# # #???????????? | | ????????????# ## ####???????????? | | ???????????# " # ????????????? | | ???????????# # ???????????? | | ????????????# % ## ""??????????? | | ????????????# % ?? ""??????????? | | ????????????# # #?? """?????????? | | ????????????## #####??? ????????????? | | ?????????????# ???????? ???????????? | | ?????????????##? ?????????? ???????????? | | ???????????????????????????? ???????????? | | ???????????????????????????? ???????????? | | ?????????????????????????????????????????? | | ?????????????????????????????????????????? | | ?????????????????????????????????????????? | | ?????????????????????????????????????????? | | ?????????????????????????????????????????? | | ?????????????????????????????????????????? | | ?????????????????????????????????????????? | | ?????????????????????????????????????????? | | ?????????????????????????????????????????? | +----------------------------------------------------+ Best States ------------- Heat Dissipation 25 Energy Generation 10 Energy Capacity 250 Matter Stores 194 Matter Capacity 300 Sight Range 16 Terrain Scan Density 10 Evasion (%) 55 Item Schematics ----------------- None Robot Schematics ------------------ None Fabricated ------------ Nothing Alien Tech Used ----------------- None Achievements -------------- None Challenges ------------ None Game ------ Seed SwordTerrabombGenerator Manual? 0 Play Time 00:12:04 Cumulative 5.1 hours Start 2025.03.22 @ 14:28:20 End 2025.03.22 @ 14:38:09 Sessions 1 Manual Loads 0 Difficulty Rogue Special Mode None Game No. 13 Rogue 13 Adventurer 0 Explorer 0 Win Type - Total 0 Types 0/0/0/0/0/0/0/0/0 Lore% 3 Gallery% 10 Achievement% 10 Wizard Run 0 Options --------- Layout 1 ASCII 0 Keyboard 0 Movement Numpad Keybinds 0 Fullscreen 1 Font 24/Smallcaps Map View 50x35 Zoom Use 0% Tactical HUD 0 Map Filters NONE Filters NONE Steam 1 RUN: c2e05e0a-6155-4e19-af5a-a68607700c64